[Event "FIDE WCCC Open-12 2024"]
[Site "Montesilvano"]
[Date "2024.11.25"]
[Round "10.42"]
[White "Ilcic, Aleksa"]
[Black "Nicot, Valentin"]
[Result "1-0"]
[ECO "D20"]
[WhiteElo "1757"]
[BlackElo "2078"]
[Annotator "NA RC"]
[PlyCount "51"]
[EventDate "2024.11.18"]
[EventType "swiss"]
[EventCountry "ITA"]
[SourceTitle "playchess.com"]
[Source "ChessBase"]
[SourceQuality "1"]
[TimeControl "5400+30"]

1. d4 {[%emt 0:00:02]} d5 {[%emt 0:00:40]} 2. c4 {[%emt 0:00:34]} dxc4 {[%emt 0:00:44]} 3. e3 {[%emt 0:00:18]} e5 {[%emt 0:00:28]} 4. Bxc4 {[%emt 0:01:55]} exd4 {[%emt 0:00:24]} 5. Nf3 {[%emt 0:05:52]} Bd6 {[%emt 0:14:50]} 6. exd4 {[%emt 0:06:44]} Nf6 {[%emt 0:00:23]} 7. O-O {[%emt 0:00:13]} O-O {[%emt 0:00:06]} 8. Nc3 {[%emt 0:04:23]} Bg4 {[%emt 0:03:38]} 9. Bg5 {[%emt 0:10:50]} Nbd7 {[%emt 0:04:52]} 10. h3 {[%emt 0:18:03]} Bh5 {[%emt 0:00:15]} 11. Re1 {[%emt 0:00:15]} Re8 {[%emt 0:07:45]} 12. g4 {[%emt 0:03:49]} Bg6 {[%emt 0:00:38]} 13. Qd2 {[%emt 0:08:42]} c6 {[%emt 0:16:38]} 14. Rxe8+ {[%emt 0:07:31]} Qxe8 {[%emt 0:00:12]} 15. Re1 {[%emt 0:00:25]} Qf8 {[%emt 0:01:51]} 16. Ne5 {[%emt 0:08:35]} Nb6 {[%emt 0:01:58]} 17. Bb3 {[%emt 0:03:34]} Nbd5 {[%emt 0:02:54]} 18. Bxf6 {[%emt 0:09:00]} Nxf6 {[%emt 0:00:45]} 19. f4 {[%emt 0:00:27]} c5 {[%emt 0:02:11]} 20. f5 {[%emt 0:07:11]} cxd4 {[%emt 0:00:04]} 21. fxg6 {[%emt 0:00:11]} dxc3 {[%emt 0:01:48]} 22. gxf7+ {[%emt 0:00:31]} Kh8 {[%emt 0:00:05]} 23. bxc3 {[%emt 0:00:19]} Rd8 {[%emt 0:01:20]} 24. Qg5 {[%emt 0:00:23]} Bc5+ {[%emt 0:01:17]} 25. Kh1 {[%emt 0:00:08]} Bb6 {[%emt 0:13:11]} 26. Qh4 {[%emt 0:01:31]} 1-0

[Event "FIDE WCCC Open-12 2024"]
[Site "Montesilvano"]
[Date "2024.11.25"]
[Round "10.43"]
[White "Vaidyanathan, Adithya"]
[Black "Mikolavicius, Julius"]
[Result "1-0"]
[ECO "A53"]
[WhiteElo "2018"]
[BlackElo "1746"]
[Annotator "RC"]
[PlyCount "91"]
[EventDate "2024.11.18"]
[EventType "swiss"]
[EventCountry "ITA"]
[SourceTitle "playchess.com"]
[Source "ChessBase"]
[SourceQuality "1"]
[TimeControl "5400+30"]

1. d4 {[%emt 0:00:02]} d6 {[%emt 0:00:07]} 2. Nf3 {[%emt 0:00:05]} Nf6 {[%emt 0:00:05]} 3. c4 {[%emt 0:00:05]} c6 {[%emt 0:00:04]} 4. Nc3 {[%emt 0:00:05]} Qa5 {[%emt 0:00:18]} 5. Bd2 {[%emt 0:00:18]} e5 {[%emt 0:00:34]} 6. Ne4 {[%emt 0:20:44]} Qd8 {[%emt 0:00:44]} 7. Nxf6+ {[%emt 0:00:47]} gxf6 {[%emt 0:02:05]} 8. Bc3 {[%emt 0:02:04]} Bf5 {[%emt 0:04:14]} 9. Qd2 {[%emt 0:02:24]} Nd7 {[%emt 0:02:30]} 10. g3 {[%emt 0:04:53]} Bg6 {[%emt 0:02:53]} 11. Bh3 {[%emt 0:01:59]} Qc7 {[%emt 0:03:28]} 12. O-O-O {[%emt 0:03:26]} O-O-O {[%emt 0:13:50]} 13. Nh4 {[%emt 0:05:04]} Kb8 {[%emt 0:03:18]} 14. Bxd7 {[%emt 0:06:42]} Qxd7 {[%emt 0:07:33]} 15. dxe5 {[%emt 0:00:22]} Qe6 {[%emt 0:05:58]} 16. exf6 {[%emt 0:05:52]} Qxc4 {[%emt 0:00:32]} 17. Nxg6 {[%emt 0:00:32]} hxg6 {[%emt 0:00:21]} 18. Kb1 {[%emt 0:00:18]} Bh6 {[%emt 0:01:14]} 19. Qd3 {[%emt 0:01:09]} Qe6 {[%emt 0:01:04]} 20. e4 {[%emt 0:03:53]} Bg5 {[%emt 0:01:27]} 21. Qf3 {[%emt 0:02:49]} Rh3 {[%emt 0:02:59]} 22. e5 {[%emt 0:04:31]} d5 {[%emt 0:00:14]} 23. Qg2 {[%emt 0:06:37]} Rhh8 {[%emt 0:46:28]} 24. f4 {[%emt 0:02:23]} Bh6 {[%emt 0:00:00]} 25. h4 {[%emt 0:00:34]} c5 {[%emt 0:00:00]} 26. Qh3 {[%emt 0:08:48]} Qb6 {[%emt 0:00:00]} 27. f5 {[%emt 0:06:56]} d4 {[%emt 0:00:00]} 28. Bd2 {[%emt 0:00:34]} c4 {[%emt 0:00:00]} 29. Bxh6 {[%emt 0:00:21]} Rxh6 {[%emt 0:00:00]} 30. Rc1 {[%emt 0:02:03]} c3 {[%emt 0:00:00]} 31. Rc2 {[%emt 0:02:52]} Qb5 {[%emt 0:00:00]} 32. fxg6 {[%emt 0:01:08]} Rxg6 {[%emt 0:00:00]} 33. h5 {[%emt 0:06:40]} Rgg8 {[%emt 0:00:00]} 34. e6 {[%emt 0:00:00]} d3 {[%emt 0:00:00]} 35. Rxc3 {[%emt 0:00:00]} d2 {[%emt 0:00:00]} 36. Rd1 {[%emt 0:00:00]} Qe2 {[%emt 0:00:00]} 37. Qh1 {[%emt 0:00:00]} Qxe6 {[%emt 0:00:00]} 38. Qf3 {[%emt 0:01:43]} Rd6 {[%emt 0:00:00]} 39. Re3 {[%emt 0:00:39]} Qc4 {[%emt 0:00:00]} 40. h6 {[%emt 0:00:30]} Rh8 {[%emt 0:00:00]} 41. Re7 {[%emt 0:00:32]} Rc6 {[%emt 0:00:00]} 42. Qc3 {[%emt 0:00:33]} Qd5 {[%emt 0:05:03]} 43. Qxd2 {[%emt 0:00:26]} Qf5+ {[%emt 0:00:08]} 44. Ka1 {[%emt 0:00:29]} Qxf6 {[%emt 0:00:32]} 45. Qd7 {[%emt 0:00:22]} Rb6 {[%emt 0:02:22]} 46. Qd8+ {[%emt 0:00:14]} 1-0

[Event "FIDE WCCC Open-12 2024"]
[Site "Montesilvano"]
[Date "2024.11.25"]
[Round "10.44"]
[White "Park, Onyoo"]
[Black "Vorobyov, Radmir"]
[Result "1/2-1/2"]
[ECO "D55"]
[WhiteElo "1710"]
[BlackElo "2017"]
[Annotator "RC"]
[PlyCount "55"]
[EventDate "2024.11.18"]
[EventType "swiss"]
[EventCountry "ITA"]
[SourceTitle "playchess.com"]
[Source "ChessBase"]
[SourceQuality "1"]
[TimeControl "5400+30"]

1. d4 {[%emt 0:00:05]} d5 {[%emt 0:00:03]} 2. c4 {[%emt 0:00:05]} e6 {[%emt 0:00:05]} 3. Nc3 {[%emt 0:00:05]} Nf6 {[%emt 0:00:04]} 4. Bg5 {[%emt 0:00:30]} Be7 {[%emt 0:00:52]} 5. e3 {[%emt 0:00:08]} O-O {[%emt 0:00:06]} 6. Bd3 {[%emt 0:00:50]} b6 {[%emt 0:00:08]} 7. Nf3 {[%emt 0:02:40]} Bb7 {[%emt 0:00:08]} 8. cxd5 {[%emt 0:04:03]} exd5 {[%emt 0:00:06]} 9. O-O {[%emt 0:00:24]} Nbd7 {[%emt 0:00:45]} 10. Rc1 {[%emt 0:01:46]} c5 {[%emt 0:01:12]} 11. dxc5 {[%emt 0:11:00]} Nxc5 {[%emt 0:02:18]} 12. Bb1 {[%emt 0:04:04]} Nce4 {[%emt 0:03:05]} 13. Bh4 {[%emt 0:04:16]} Rc8 {[%emt 0:04:23]} 14. Ne2 {[%emt 0:20:57]} Qd7 {[%emt 0:06:37]} 15. Qd3 {[%emt 0:18:40]} g6 {[%emt 0:17:31]} 16. Rfd1 {[%emt 0:06:20]} Ng4 {[%emt 0:03:56]} 17. Qxe4 {[%emt 0:15:18]} dxe4 {[%emt 0:00:11]} 18. Rxd7 {[%emt 0:00:05]} exf3 {[%emt 0:04:58]} 19. gxf3 {[%emt 0:01:02]} Bxh4 {[%emt 0:02:02]} 20. fxg4 {[%emt 0:00:55]} Bf3 {[%emt 0:04:20]} 21. Rxc8 {[%emt 0:00:47]} Rxc8 {[%emt 0:00:26]} 22. Nc3 {[%emt 0:00:20]} b5 {[%emt 0:21:29]} 23. Be4 {[%emt 0:03:37]} Bxg4 {[%emt 0:11:51]} 24. Rxa7 {[%emt 0:00:06]} b4 {[%emt 0:00:03]} 25. Nd5 {[%emt 0:00:21]} f5 {[%emt 0:02:54]} 26. Bd3 {[%emt 0:00:07]} Bf3 {[%emt 0:08:29]} 27. Rc7 {[%emt 0:00:15]} Rd8 {[%emt 0:01:10]} 28. Nxb4 {[%emt 0:00:29]} 1/2-1/2

[Event "FIDE WCCC Open-12 2024"]
[Site "Montesilvano"]
[Date "2024.11.25"]
[Round "10.45"]
[White "Yin, Milo"]
[Black "Wang, William Kaiyuan"]
[Result "1-0"]
[ECO "C57"]
[WhiteElo "1925"]
[BlackElo "1715"]
[Annotator "RC"]
[PlyCount "59"]
[EventDate "2024.11.18"]
[EventType "swiss"]
[EventCountry "ITA"]
[SourceTitle "playchess.com"]
[Source "ChessBase"]
[SourceQuality "1"]
[TimeControl "5400+30"]

1. e4 {[%emt 0:00:27]} e5 {[%emt 0:00:07]} 2. Nf3 {[%emt 0:00:07]} Nc6 {[%emt 0:00:02]} 3. Bc4 {[%emt 0:00:08]} Nf6 {[%emt 0:01:24]} 4. Ng5 {[%emt 0:00:16]} d5 {[%emt 0:00:07]} 5. exd5 {[%emt 0:00:05]} b5 {[%emt 0:03:21]} 6. Bf1 {[%emt 0:00:08]} Nxd5 {[%emt 0:00:04]} 7. Bxb5 {[%emt 0:00:04]} Bb7 {[%emt 0:00:10]} 8. Nf3 {[%emt 0:03:28]} Bd6 {[%emt 0:00:41]} 9. d3 {[%emt 0:08:55]} O-O {[%emt 0:07:32]} 10. O-O {[%emt 0:12:34]} Nd4 {[%emt 0:02:59]} 11. Nxd4 {[%emt 0:10:27]} exd4 {[%emt 0:01:06]} 12. Qg4 {[%emt 0:02:32]} Nf6 {[%emt 0:04:45]} 13. Qh4 {[%emt 0:00:40]} h6 {[%emt 0:15:57]} 14. c3 {[%emt 0:07:55]} c5 {[%emt 0:03:43]} 15. f4 {[%emt 0:05:04]} Qe7 {[%emt 0:14:11]} 16. Re1 {[%emt 0:05:33]} Qc7 {[%emt 0:02:29]} 17. f5 {[%emt 0:06:24]} Nh7 {[%emt 0:20:34]} 18. Nd2 {[%emt 0:04:10]} Bxg2 {[%emt 0:04:45]} 19. Kxg2 {[%emt 0:01:34]} Qb7+ {[%emt 0:00:15]} 20. Ne4 {[%emt 0:00:09]} Be7 {[%emt 0:00:59]} 21. Qg3 {[%emt 0:03:32]} Qxb5 {[%emt 0:06:31]} 22. Bxh6 {[%emt 0:00:34]} g6 {[%emt 0:01:20]} 23. Qe5 {[%emt 0:01:03]} f6 {[%emt 0:00:53]} 24. Qe6+ {[%emt 0:04:48]} Kh8 {[%emt 0:00:50]} 25. fxg6 {[%emt 0:02:37]} Rg8 {[%emt 0:01:34]} 26. g7+ {[%emt 0:02:31]} Rxg7+ {[%emt 0:00:15]} 27. Bxg7+ {[%emt 0:00:05]} Kxg7 {[%emt 0:00:05]} 28. Qxe7+ {[%emt 0:00:06]} Kh8 {[%emt 0:00:14]} 29. Nxf6 {[%emt 0:02:34]} Qc6+ {[%emt 0:00:20]} 30. Qe4 {[%emt 0:17:00]} 1-0

[Event "FIDE WCCC Open-12 2024"]
[Site "Montesilvano"]
[Date "2024.11.25"]
[Round "10.46"]
[White "Leht, Karl Samuel"]
[Black "Bundan, Edward"]
[Result "1/2-1/2"]
[ECO "B33"]
[WhiteElo "1701"]
[BlackElo "1905"]
[Annotator "NA RC"]
[PlyCount "82"]
[EventDate "2024.11.18"]
[EventType "swiss"]
[EventCountry "ITA"]
[SourceTitle "playchess.com"]
[Source "ChessBase"]
[SourceQuality "1"]
[TimeControl "5400+30"]

1. e4 {[%emt 0:00:01]} c5 {[%emt 0:00:06]} 2. Nf3 {[%emt 0:00:01]} Nc6 {[%emt 0:00:08]} 3. d4 {[%emt 0:00:05]} cxd4 {[%emt 0:00:06]} 4. Nxd4 {[%emt 0:00:01]} Nf6 {[%emt 0:00:12]} 5. Nc3 {[%emt 0:00:03]} e5 {[%emt 0:00:12]} 6. Ndb5 {[%emt 0:00:01]} d6 {[%emt 0:00:09]} 7. Bg5 {[%emt 0:00:04]} a6 {[%emt 0:00:14]} 8. Na3 {[%emt 0:00:05]} b5 {[%emt 0:00:07]} 9. Nd5 {[%emt 0:00:05]} Be7 {[%emt 0:00:08]} 10. Bxf6 {[%emt 0:00:04]} Bxf6 {[%emt 0:00:09]} 11. c3 {[%emt 0:00:01]} O-O {[%emt 0:00:21]} 12. Nc2 {[%emt 0:00:00]} Rb8 {[%emt 0:00:18]} 13. h4 {[%emt 0:00:06]} g6 {[%emt 0:04:16]} 14. h5 {[%emt 0:04:29]} Bg7 {[%emt 0:06:40]} 15. Qf3 {[%emt 0:01:36]} Qg5 {[%emt 0:05:24]} 16. Be2 {[%emt 0:08:01]} f5 {[%emt 0:12:55]} 17. hxg6 {[%emt 0:02:53]} hxg6 {[%emt 0:03:08]} 18. exf5 {[%emt 0:09:09]} Qxf5 {[%emt 0:16:11]} 19. Qxf5 {[%emt 0:00:44]} gxf5 {[%emt 0:02:27]} 20. O-O-O {[%emt 0:00:28]} Rb7 {[%emt 0:14:25]} 21. a4 {[%emt 0:02:48]} Be6 {[%emt 0:09:23]} 22. axb5 {[%emt 0:02:21]} axb5 {[%emt 0:00:43]} 23. Ncb4 {[%emt 0:00:26]} Nxb4 {[%emt 0:00:58]} 24. Nxb4 {[%emt 0:00:11]} Rd8 {[%emt 0:01:18]} 25. g4 {[%emt 0:07:27]} fxg4 {[%emt 0:03:37]} 26. Rhg1 {[%emt 0:01:33]} Bh6+ {[%emt 0:01:09]} 27. Kc2 {[%emt 0:00:13]} Bf5+ {[%emt 0:01:05]} 28. Kb3 {[%emt 0:00:42]} Be6+ {[%emt 0:00:41]} 29. Nd5 {[%emt 0:00:30]} Rg7 {[%emt 0:01:35]} 30. Bxg4 {[%emt 0:01:48]} Rxg4 {[%emt 0:02:21]} 31. Rxg4+ {[%emt 0:00:16]} Bxg4 {[%emt 0:00:06]} 32. Nf6+ {[%emt 0:00:03]} Kf7 {[%emt 0:00:16]} 33. Nxg4 {[%emt 0:00:09]} Bf4 {[%emt 0:00:30]} 34. Ne3 {[%emt 0:00:16]} Bxe3 {[%emt 0:00:53]} 35. fxe3 {[%emt 0:00:05]} Ke6 {[%emt 0:00:52]} 36. Kb4 {[%emt 0:00:51]} Rb8 {[%emt 0:01:44]} 37. e4 {[%emt 0:01:17]} Kd7 {[%emt 0:02:18]} 38. Rd5 {[%emt 0:02:09]} Kc6 {[%emt 0:00:23]} 39. b3 {[%emt 0:00:45]} Rb7 {[%emt 0:01:06]} 40. c4 {[%emt 0:01:45]} bxc4+ {[%emt 0:00:09]} 41. Kxc4 {[%emt 0:00:02]} Rh7 {[%emt 0:01:41]} 1/2-1/2

[Event "FIDE WCCC Open-12 2024"]
[Site "Montesilvano"]
[Date "2024.11.25"]
[Round "10.47"]
[White "Berishvili, Davit"]
[Black "Fadeev, Justin Michael"]
[Result "0-1"]
[ECO "D35"]
[WhiteElo "1578"]
[BlackElo "1878"]
[Annotator "NA RC"]
[PlyCount "64"]
[EventDate "2024.11.18"]
[EventType "swiss"]
[EventCountry "ITA"]
[SourceTitle "playchess.com"]
[Source "ChessBase"]
[SourceQuality "1"]
[TimeControl "5400+30"]

1. d4 {[%emt 0:00:02]} d5 {[%emt 0:00:04]} 2. c4 {[%emt 0:00:03]} e6 {[%emt 0:00:03]} 3. Nc3 {[%emt 0:00:03]} c6 {[%emt 0:00:05]} 4. cxd5 {[%emt 0:00:14]} exd5 {[%emt 0:00:38]} 5. Nf3 {[%emt 0:00:44]} Nf6 {[%emt 0:02:06]} 6. Bg5 {[%emt 0:00:07]} Be7 {[%emt 0:00:36]} 7. e3 {[%emt 0:00:11]} Bf5 {[%emt 0:01:17]} 8. Bd3 {[%emt 0:00:12]} Bxd3 {[%emt 0:00:48]} 9. Qxd3 {[%emt 0:00:07]} O-O {[%emt 0:00:53]} 10. Nd2 {[%emt 0:01:47]} Na6 {[%emt 0:02:34]} 11. a3 {[%emt 0:03:43]} Re8 {[%emt 0:01:20]} 12. O-O {[%emt 0:00:30]} Ne4 {[%emt 0:03:29]} 13. Bxe7 {[%emt 0:00:07]} Qxe7 {[%emt 0:00:04]} 14. b4 {[%emt 0:02:29]} Nc7 {[%emt 0:01:35]} 15. Nb3 {[%emt 0:00:25]} f5 {[%emt 0:02:51]} 16. Rfe1 {[%emt 0:01:00]} Qh4 {[%emt 0:03:13]} 17. Nxe4 {[%emt 0:05:15]} fxe4 {[%emt 0:00:39]} 18. Qf1 {[%emt 0:00:32]} Re6 {[%emt 0:06:09]} 19. g3 {[%emt 0:00:06]} Qh5 {[%emt 0:01:30]} 20. Qg2 {[%emt 0:00:30]} Rf6 {[%emt 0:02:25]} 21. Ra2 {[%emt 0:00:26]} Ne6 {[%emt 0:00:42]} 22. g4 {[%emt 0:05:58]} Qh6 {[%emt 0:01:47]} 23. Rae2 {[%emt 0:00:25]} Ng5 {[%emt 0:00:26]} 24. Rf1 {[%emt 0:01:04]} Nf3+ {[%emt 0:00:41]} 25. Kh1 {[%emt 0:00:07]} Qh4 {[%emt 0:00:52]} 26. g5 {[%emt 0:01:28]} Rg6 {[%emt 0:02:44]} 27. Qg3 {[%emt 0:00:22]} Qh5 {[%emt 0:02:06]} 28. h4 {[%emt 0:00:29]} Rxg5 {[%emt 0:01:21]} 29. Qh3 {[%emt 0:00:16]} Rg4 {[%emt 0:00:04]} 30. Qg3 {[%emt 0:00:59]} Rxh4+ {[%emt 0:00:12]} 31. Kg2 {[%emt 0:00:05]} Rh2+ {[%emt 0:00:08]} 32. Qxh2 {[%emt 0:00:05]} Qxh2# {[%emt 0:00:36]} 0-1

[Event "FIDE WCCC Open-12 2024"]
[Site "Montesilvano"]
[Date "2024.11.25"]
[Round "10.48"]
[White "Ivarlac, Vladislav"]
[Black "Andreiev, Andrii"]
[Result "1-0"]
[ECO "D37"]
[WhiteElo "1867"]
[BlackElo "1704"]
[Annotator "NA RC"]
[PlyCount "69"]
[EventDate "2024.11.18"]
[EventType "swiss"]
[EventCountry "ITA"]
[SourceTitle "playchess.com"]
[Source "ChessBase"]
[SourceQuality "1"]
[TimeControl "5400+30"]

1. d4 {[%emt 0:00:03]} d5 {[%emt 0:00:07]} 2. c4 {[%emt 0:00:05]} e6 {[%emt 0:00:08]} 3. Nc3 {[%emt 0:00:05]} Nf6 {[%emt 0:00:10]} 4. Bf4 {[%emt 0:00:34]} c6 {[%emt 0:02:49]} 5. e3 {[%emt 0:00:57]} Be7 {[%emt 0:01:20]} 6. Nf3 {[%emt 0:00:50]} O-O {[%emt 0:01:34]} 7. Be2 {[%emt 0:03:21]} Nbd7 {[%emt 0:02:18]} 8. Ne5 {[%emt 0:02:16]} h6 {[%emt 0:06:42]} 9. O-O {[%emt 0:00:31]} Nb6 {[%emt 0:03:46]} 10. Rc1 {[%emt 0:03:21]} Bd7 {[%emt 0:06:12]} 11. c5 {[%emt 0:02:06]} Nc8 {[%emt 0:01:32]} 12. Qb3 {[%emt 0:01:32]} b6 {[%emt 0:02:05]} 13. Ba6 {[%emt 0:04:53]} Nh5 {[%emt 0:04:25]} 14. Bb7 {[%emt 0:01:59]} Nxf4 {[%emt 0:09:54]} 15. Bxa8 {[%emt 0:01:54]} Ng6 {[%emt 0:02:01]} 16. Nxc6 {[%emt 0:01:48]} Qc7 {[%emt 0:02:19]} 17. Nxe7+ {[%emt 0:00:21]} Ncxe7 {[%emt 0:00:34]} 18. c6 {[%emt 0:00:12]} Bxc6 {[%emt 0:03:07]} 19. Bxc6 {[%emt 0:00:06]} Qxc6 {[%emt 0:00:12]} 20. Nb5 {[%emt 0:00:17]} Qa8 {[%emt 0:00:33]} 21. Qa3 {[%emt 0:01:03]} a6 {[%emt 0:02:00]} 22. Nc7 {[%emt 0:00:24]} Qb8 {[%emt 0:01:01]} 23. Nxa6 {[%emt 0:00:21]} Qd8 {[%emt 0:01:09]} 24. Nb4 {[%emt 0:01:41]} Nh4 {[%emt 0:05:16]} 25. f4 {[%emt 0:02:27]} Kh8 {[%emt 0:06:46]} 26. Nc6 {[%emt 0:00:49]} Nxc6 {[%emt 0:02:21]} 27. Rxc6 {[%emt 0:00:05]} Rg8 {[%emt 0:02:31]} 28. Qd6 {[%emt 0:00:55]} Qf6 {[%emt 0:01:03]} 29. f5 {[%emt 0:02:36]} Qg5 {[%emt 0:02:40]} 30. Qg3 {[%emt 0:00:33]} Qe7 {[%emt 0:02:10]} 31. f6 {[%emt 0:04:28]} Qd7 {[%emt 0:02:09]} 32. Rc7 {[%emt 0:00:23]} Qd8 {[%emt 0:00:58]} 33. Rxf7 {[%emt 0:00:58]} Nf5 {[%emt 0:00:46]} 34. Rxf5 {[%emt 0:00:43]} exf5 {[%emt 0:00:45]} 35. Rxg7 {[%emt 0:00:13]} 1-0

[Event "FIDE WCCC Open-12 2024"]
[Site "Montesilvano"]
[Date "2024.11.25"]
[Round "10.49"]
[White "Aadik Theophane Lenin"]
[Black "Isakov, Amin"]
[Result "1-0"]
[ECO "D37"]
[WhiteElo "1857"]
[BlackElo "1698"]
[Annotator "NA RC"]
[PlyCount "91"]
[EventDate "2024.11.18"]
[EventType "swiss"]
[EventCountry "ITA"]
[SourceTitle "playchess.com"]
[Source "ChessBase"]
[SourceQuality "1"]
[TimeControl "5400+30"]

1. d4 {[%emt 0:00:22]} Nf6 {[%emt 0:00:12]} 2. c4 {[%emt 0:00:12]} e6 {[%emt 0:00:13]} 3. Nf3 {[%emt 0:00:02]} d5 {[%emt 0:00:14]} 4. Nc3 {[%emt 0:00:01]} Be7 {[%emt 0:00:14]} 5. Bf4 {[%emt 0:00:03]} O-O {[%emt 0:00:49]} 6. e3 {[%emt 0:00:02]} c5 {[%emt 0:01:09]} 7. dxc5 {[%emt 0:00:09]} Bxc5 {[%emt 0:00:12]} 8. Qc2 {[%emt 0:00:05]} Nc6 {[%emt 0:01:02]} 9. a3 {[%emt 0:00:10]} Re8 {[%emt 0:01:07]} 10. O-O-O {[%emt 0:10:25]} e5 {[%emt 0:04:54]} 11. cxd5 {[%emt 0:02:59]} exf4 {[%emt 0:00:15]} 12. dxc6 {[%emt 0:00:06]} Qe7 {[%emt 0:08:59]} 13. exf4 {[%emt 0:00:55]} bxc6 {[%emt 0:00:48]} 14. Ne5 {[%emt 0:02:09]} Be6 {[%emt 0:00:46]} 15. Bc4 {[%emt 0:15:13]} Bxc4 {[%emt 0:02:44]} 16. Nxc4 {[%emt 0:00:03]} Ng4 {[%emt 0:07:32]} 17. Rd2 {[%emt 0:00:31]} Qe6 {[%emt 0:11:29]} 18. Nd1 {[%emt 0:04:08]} Rad8 {[%emt 0:21:58]} 19. Rxd8 {[%emt 0:03:21]} Rxd8 {[%emt 0:00:30]} 20. f3 {[%emt 0:00:27]} Ne3 {[%emt 0:08:16]} 21. Ndxe3 {[%emt 0:00:14]} Bxe3+ {[%emt 0:00:11]} 22. Nxe3 {[%emt 0:00:15]} Qxe3+ {[%emt 0:00:15]} 23. Kb1 {[%emt 0:00:11]} Rd2 {[%emt 0:07:57]} 24. Rd1 {[%emt 0:00:40]} Rxd1+ {[%emt 0:00:42]} 25. Qxd1 {[%emt 0:00:01]} g6 {[%emt 0:00:54]} 26. Qc1 {[%emt 0:04:15]} Qd3+ {[%emt 0:01:46]} 27. Qc2 {[%emt 0:00:15]} Qf1+ {[%emt 0:00:56]} 28. Ka2 {[%emt 0:00:01]} Qb5 {[%emt 0:00:17]} 29. Qb3 {[%emt 0:01:13]} Qa6 {[%emt 0:00:17]} 30. g4 {[%emt 0:02:01]} Kg7 {[%emt 0:00:48]} 31. Qc3+ {[%emt 0:01:21]} Kg8 {[%emt 0:00:12]} 32. Qb4 {[%emt 0:00:58]} Qd3 {[%emt 0:00:58]} 33. Qb8+ {[%emt 0:00:18]} Kg7 {[%emt 0:00:08]} 34. Qe5+ {[%emt 0:00:15]} Kg8 {[%emt 0:00:06]} 35. Qe8+ {[%emt 0:00:04]} Kg7 {[%emt 0:00:15]} 36. Qxc6 {[%emt 0:00:02]} Qd8 {[%emt 0:00:35]} 37. Qc5 {[%emt 0:01:25]} Qd7 {[%emt 0:00:19]} 38. Qe5+ {[%emt 0:02:19]} Kg8 {[%emt 0:00:11]} 39. h4 {[%emt 0:00:56]} Qc8 {[%emt 0:00:23]} 40. Qe4 {[%emt 0:00:32]} Qc1 {[%emt 0:01:12]} 41. f5 {[%emt 0:03:23]} Qc8 {[%emt 0:00:53]} 42. fxg6 {[%emt 0:02:51]} hxg6 {[%emt 0:00:09]} 43. h5 {[%emt 0:00:12]} gxh5 {[%emt 0:00:12]} 44. gxh5 {[%emt 0:00:01]} Kh8 {[%emt 0:00:14]} 45. h6 {[%emt 0:00:25]} f6 {[%emt 0:00:15]} 46. Qg4 {[%emt 0:01:59]} 1-0

[Event "FIDE WCCC Open-12 2024"]
[Site "Montesilvano"]
[Date "2024.11.25"]
[Round "10.50"]
[White "Petrovski, Nikola"]
[Black "Zhan, Jayden Zihan"]
[Result "0-1"]
[ECO "B84"]
[WhiteElo "1829"]
[BlackElo "1670"]
[Annotator "NA RC"]
[PlyCount "120"]
[EventDate "2024.11.18"]
[EventType "swiss"]
[EventCountry "ITA"]
[SourceTitle "playchess.com"]
[Source "ChessBase"]
[SourceQuality "1"]
[TimeControl "5400+30"]

1. e4 {[%emt 0:00:04]} c5 {[%emt 0:00:07]} 2. Nf3 {[%emt 0:00:11]} e6 {[%emt 0:00:05]} 3. Nc3 {[%emt 0:00:04]} a6 {[%emt 0:00:08]} 4. d4 {[%emt 0:01:05]} cxd4 {[%emt 0:00:06]} 5. Nxd4 {[%emt 0:00:03]} Qc7 {[%emt 0:00:14]} 6. a3 {[%emt 0:01:00]} b5 {[%emt 0:00:17]} 7. Be2 {[%emt 0:07:09]} Bb7 {[%emt 0:00:25]} 8. O-O {[%emt 0:00:31]} Nf6 {[%emt 0:01:11]} 9. Bf3 {[%emt 0:01:10]} d6 {[%emt 0:04:38]} 10. Be3 {[%emt 0:00:59]} Be7 {[%emt 0:01:45]} 11. Qd2 {[%emt 1:23:44]} O-O {[%emt 0:01:44]} 12. Rad1 {[%emt 0:00:00]} Nbd7 {[%emt 0:03:42]} 13. Rfe1 {[%emt 0:00:00]} Rac8 {[%emt 0:03:08]} 14. Qe2 {[%emt 0:00:00]} Ne5 {[%emt 0:09:43]} 15. Bc1 {[%emt 0:00:00]} Rfe8 {[%emt 0:17:56]} 16. Kh1 {[%emt 0:00:00]} Nxf3 {[%emt 0:02:52]} 17. Nxf3 {[%emt 0:00:00]} d5 {[%emt 0:01:46]} 18. exd5 {[%emt 0:00:00]} Nxd5 {[%emt 0:05:20]} 19. Nxd5 {[%emt 0:00:00]} Bxd5 {[%emt 0:00:41]} 20. Nd4 {[%emt 0:00:00]} Bd6 {[%emt 0:07:49]} 21. h3 {[%emt 0:00:00]} Qe7 {[%emt 0:05:23]} 22. Kg1 {[%emt 0:00:00]} Qf6 {[%emt 0:06:20]} 23. Qg4 {[%emt 0:00:00]} Rc4 {[%emt 0:12:31]} 24. b3 {[%emt 0:04:17]} h5 {[%emt 0:05:52]} 25. Qg5 {[%emt 0:00:04]} Qxg5 {[%emt 0:01:14]} 26. Bxg5 {[%emt 0:00:06]} Rcc8 {[%emt 0:00:30]} 27. Bc1 {[%emt 0:00:49]} Red8 {[%emt 0:03:33]} 28. Bb2 {[%emt 0:00:47]} Bc5 {[%emt 0:01:20]} 29. Re2 {[%emt 0:01:00]} Kf8 {[%emt 0:01:26]} 30. Rdd2 {[%emt 0:00:39]} Rd6 {[%emt 0:01:35]} 31. Kh2 {[%emt 0:01:27]} f6 {[%emt 0:00:36]} 32. Kg1 {[%emt 0:00:35]} Kf7 {[%emt 0:00:11]} 33. Kh2 {[%emt 0:00:33]} Rcd8 {[%emt 0:00:31]} 34. Bc3 {[%emt 0:00:25]} Bxa3 {[%emt 0:01:04]} 35. Kg3 {[%emt 0:00:38]} R6d7 {[%emt 0:00:52]} 36. Ba5 {[%emt 0:00:16]} Rc8 {[%emt 0:00:26]} 37. b4 {[%emt 0:00:45]} Rc4 {[%emt 0:00:40]} 38. Nb3 {[%emt 0:00:21]} Bxb4 {[%emt 0:00:53]} 39. Bxb4 {[%emt 0:00:06]} Rxb4 {[%emt 0:00:06]} 40. Nc5 {[%emt 0:00:18]} Ra7 {[%emt 0:00:34]} 41. c3 {[%emt 0:00:13]} Rc4 {[%emt 0:00:15]} 42. Nd3 {[%emt 0:00:24]} Rxc3 {[%emt 0:00:17]} 43. Kh2 {[%emt 0:00:05]} Bc4 {[%emt 0:00:31]} 44. Re3 {[%emt 0:00:11]} Bxd3 {[%emt 0:00:27]} 45. Rdxd3 {[%emt 0:00:05]} Rxd3 {[%emt 0:00:08]} 46. Rxd3 {[%emt 0:00:01]} a5 {[%emt 0:00:32]} 47. g4 {[%emt 0:00:09]} hxg4 {[%emt 0:00:11]} 48. hxg4 {[%emt 0:00:05]} b4 {[%emt 0:00:08]} 49. f4 {[%emt 0:00:05]} a4 {[%emt 0:00:16]} 50. f5 {[%emt 0:00:08]} e5 {[%emt 0:00:22]} 51. g5 {[%emt 0:00:11]} fxg5 {[%emt 0:00:20]} 52. f6 {[%emt 0:00:03]} gxf6 {[%emt 0:00:14]} 53. Rg3 {[%emt 0:00:05]} b3 {[%emt 0:00:15]} 54. Rg2 {[%emt 0:00:05]} a3 {[%emt 0:00:07]} 55. Kh3 {[%emt 0:00:11]} a2 {[%emt 0:00:13]} 56. Rd2 {[%emt 0:00:05]} a1=Q {[%emt 0:05:00]} 57. Kg4 {[%emt 0:00:20]} Ra4+ {[%emt 0:00:00]} 58. Kf3 {[%emt 0:00:06]} Qc3+ {[%emt 0:00:00]} 59. Kg2 {[%emt 0:00:10]} Qxd2+ {[%emt 0:00:00]} 60. Kh3 {[%emt 0:00:06]} Rh4+ {[%emt 0:00:00]} 0-1